Cogmind - Beta 14 @@@ ROGUE MODE // 2024.10.23 @ 03:47:13 Player: Null_error Result: Destroyed by P-60 Hacker with Shock Rifle Performance ------------- Evolutions (4) 2000 Regions Visited (5) 1000 Robots Destroyed (3) 15 Value Destroyed (30) 30 Prototype IDs (1) 20 Alien Tech Used (0) 0 Bonus (470) 470 TOTAL SCORE: 3535 Bonus ------- Pacifist 470 Cogmind --------- Core Integrity 0/850 Matter 129/300 Energy 91/100 System Corruption 12% Temperature Cool (0) Movement Rolling (90) Location -6/Factory Parts ------- > --- POWER (1) -------- (None) > --- PROPULSION (2) --- Armored Wheel > --- UTILITY (10) ----- Machine Analyzer Improved Signal Interpreter Advanced Targeting Computer Hacking Suite > --- WEAPON (2) ------- (None) > --- INVENTORY (5) ---- Improved Sensor Array Hacking Suite Hacking Suite Powered Hammer Great Axe Peak State ------------ > --- POWER ------------ Light Fission Core > --- PROPULSION ------- Cooled Airjet Cooled Airjet > --- UTILITY ---------- Machine Analyzer Sensor Array Improved Sensor Array Advanced Targeting Computer Hacking Suite Hacking Suite > --- WEAPON ----------- (None) > --- INVENTORY -------- Improved Sensor Array Hacking Suite Hacking Suite Powered Hammer Great Axe [Rating: 32] Favorites ----------- Power Light Fission Core Power Core Light Fission Core Propulsion Flight Unit Wheel Armored Wheel Hover Unit Cooled Airjet Flight Unit Flight Unit Utility Hacking Suite Device Sensor Array Processor Advanced Targeting Computer Hackware Hacking Suite Weapon EM Shotgun Energy Gun EM Shotgun Energy Cannon Phase Cannon Slashing Weapon Greatsword Build | -11 -10 -9 -8 -7 -6 ------- Run | Yrd Mat Mat Mat Fac Fac Slots Evolved 8 | . . 2 2 2 2 Power . | . . . . . . Propulsion . | . . . . . . Utility 8 | . . 2 2 2 2 Weapon . | . . . . . . Parts Attached 21 | . 2 3 5 1 10 Power 1 | . . . . . 1 Engine . | . . . . . . Core 1 | . . . . . 1 Reactor . | . . . . . . Propulsion 7 | . . . 2 . 5 Treads . | . . . . . . Leg . | . . . . . . Wheel 1 | . . . . . 1 Hover 4 | . . . . . 4 Flight 2 | . . . 2 . . Utility 9 | . 2 3 1 1 2 Device 3 | . 2 1 . . . Storage . | . . . . . . Processor 3 | . . . 1 1 1 Hackware 3 | . . 2 . . 1 Protection . | . . . . . . Artifact . | . . . . . . Weapon 4 | . . . 2 . 2 Energy Gun 1 | . . . 1 . . Energy Cannon 1 | . . . . . 1 Ballistic Gun . | . . . . . . Ballistic Cannon . | . . . . . . Launcher . | . . . . . . Special Weapon . | . . . . . . Impact Weapon . | . . . . . . Slashing Weapon 2 | . . . 1 . 1 Piercing Weapon . | . . . . . . Special Melee Weapon . | . . . . . . Unidentified Prototypes 1 | . . . . . 1 Parts Lost 12 | . 1 . . . 11 Power 1 | . . . . . 1 Propulsion 4 | . . . . . 4 Utility 5 | . 1 . . . 4 Weapon 2 | . . . . . 2 Highest Loss Streak 5 | . 1 . . . 5 To Critical Strikes . | . . . . . . Average Slot Usage (%) 50 | . 10 41 61 69 47 Flight 6 | . . . 11 15 3 Device 13 | . 10 20 18 15 5 Processor 9 | . . . 7 15 16 Hackware 16 | . . 20 18 15 15 Energy Gun 3 | . . . 6 7 2 Peak Build Rating 32 | . 2 10 21 21 32 Average Rating 16 | . . 9 15 20 21 On Entrance 8 | . . 1 10 18 21 Naked Turns 35 | . 35 . . . . Heaviest Build 9 | . 2 2 9 5 9 Greatest Support 16 | 3 3 3 8 8 16 Greatest Overweight (x) 2 | . . . 1 . 2 Average Overweight (x) . | . . . . . . Largest Inventory Capacity 5 | 5 5 5 5 5 5 Average Capacity 5 | 5 5 5 5 5 5 Most Carried 5 | . . 3 4 5 5 Average Carried 3 | . . 2 3 4 5 Final Capacity 5 | 5 5 5 5 5 5 Final Carried 5 | . . 3 4 5 5 Class Distribution -------------------- 88% | Hacker-Mutant 11% | Mutant Dominant Class ---------------- Mutant | -10/Materials Hacker-Mutant | -9/Materials Hacker-Mutant | -8/Materials Hacker-Mutant | -7/Factory Hacker-Mutant | -6/Factory Resources | -11 -10 -9 -8 -7 -6 ----------- Run | Yrd Mat Mat Mat Fac Fac Matter Collected 132 | 43 . . 60 . 29 Remotely . | . . . . . . Salvage Created 60 | . . . 60 . . Parts 7 | . . . 7 . . Haulers Intercepted . | . . . . . . Recyclers Shooed . | . . . . . . Parts Field Recycled . | . . . . . . Retrieved Matter . | . . . . . . Parts Self-Destructed . | . . . . . . Prevented . | . . . . . . Kills | -11 -10 -9 -8 -7 -6 ------- Run | Yrd Mat Mat Mat Fac Fac Combat Hostiles Destroyed 3 | . . . 3 . . Guns 3 | . . . 3 . . Classes Destroyed 1 | . . . 1 . . Swarmer 3 | . . . 3 . . Best Kill Streak 3 | . . . 3 . . Combat Bots Only 3 | . . . 3 . . Max Kills in Single Turn 1 | . . . 1 . . Gunslinging . | . . . . . . Exploded . | . . . . . . Melee . | . . . . . . Uniques/NPCs Destroyed . | . . . . . . Combat | -11 -10 -9 -8 -7 -6 -------- Run | Yrd Mat Mat Mat Fac Fac Hostile Shots Fired 226 | . 20 8 18 6 174 Missed 101 | . 9 4 12 4 72 Damage Taken 1751 | . 119 53 52 30 1497 Core 1030 | . 82 41 19 30 858 Absorbed by Shields . | . . . . . . Core Remaining (%) 89 | 100 67 89 96 95 . Volleys Fired 5 | . . . 4 . 1 Largest 1 | . . . 1 . 1 Hottest 85 | . . . 45 . 85 Shots Fired 5 | . . . 4 . 1 Gun 4 | . . . 4 . . Cannon 1 | . . . . . 1 Launcher . | . . . . . . Special . | . . . . . . Kinetic . | . . . . . . Thermal 1 | . . . . . 1 Explosive . | . . . . . . Electromagnetic 4 | . . . 4 . . Robot Hit Streak 5 | . . . 4 . 5 Robot Miss Streak 1 | . . . 1 . . Penetration Max . | . . . . . . Secondary Targets . | . . . . . . Shots Hit Robots 6 | . . . 4 . 2 Core Hits 3 | . . . 3 . . Critical Kills . | . . . . . . Critical Parts Destroyed . | . . . . . . Critical Strikes . | . . . . . . Melee Attacks 3 | . . . . . 3 Impact . | . . . . . . Slashing 3 | . . . . . 3 Piercing . | . . . . . . Sneak Attacks . | . . . . . . Combat Hostiles . | . . . . . . Follow-up Attacks . | . . . . . . Damage Inflicted 179 | . 26 . 31 . 122 Guns 31 | . . . 31 . . Cannons 30 | . . . . . 30 Explosions . | . . . . . . Melee 54 | . . . . . 54 Ramming 64 | . 26 . . . 38 Kinetic . | . . . . . . Thermal 30 | . . . . . 30 Explosive . | . . . . . . Electromagnetic 31 | . . . 31 . . Impact . | . . . . . . Slashing 54 | . . . . . 54 Piercing . | . . . . . . Highest Corruption 12 | . 2 . . . 12 Average Corruption 7 | . 2 . . . 7 Corruption Purged . | . . . . . . Corruption Blocked . | . . . . . . Effects 6 | . . . . . 6 Message Errors 1 | . . . . . 1 Matter Fused 1 | . . . . . 1 Heat Flow Errors 1 | . . . . . 1 Energy Discharges 1 | . . . . . 1 Data Loss (minor) 1 | . . . . . 1 Data Loss (major) 1 | . . . . . 1 Overload Shots . | . . . . . . Overflow Damage 2 | . . . . . 2 Projectiles . | . . . . . . Explosions . | . . . . . . Melee 2 | . . . . . 2 Knockbacks 1 | . . . . . 1 Impact 1 | . . . . . 1 Kinetic . | . . . . . . Secondary . | . . . . . . Self-Inflicted Damage 30 | . 13 . . . 17 Shots . | . . . . . . Rammed 16 | . 3 . . . 13 Targets Rammed 16 | . 3 . . . 13 Kicked . | . . . . . . Crushed . | . . . . . . Highest Temperature 142 | . . . . . 142 Average Temperature 63 | . . . . . 63 Received Heat Transfer 264 | . 21 27 . . 216 Siege Activations . | . . . . . . Robots Corrupted . | . . . . . . Combat Hostiles . | . . . . . . Parts Fried . | . . . . . . Impact Corruptions . | . . . . . . Robots Melted . | . . . . . . Combat Hostiles . | . . . . . . Parts Melted . | . . . . . . Heat Transferred 37 | . . . . . 37 Parts Sabotaged . | . . . . . . Parts Stolen . | . . . . . . Parts Stripped . | . . . . . . Power Chain Reactions . | . . . . . . Alert | -11 -10 -9 -8 -7 -6 ------- Run | Yrd Mat Mat Mat Fac Fac Peak Influence 302 | . 45 89 302 137 248 Initial 137 | . . 14 37 137 66 Average 95 | . 16 22 110 137 117 Maximum Alert Level 1 | . . . 1 . 1 Low Security (%) 88 | 100 100 100 89 100 78 Level 1 11 | . . . 10 . 21 Level 2 . | . . . . . . Level 3 . | . . . . . . Level 4 . | . . . . . . Level 5 . | . . . . . . High Security . | . . . . . . Max Security . | . . . . . . Squads Dispatched 1 | . . . . . 1 Investigation . | . . . . . . Extermination 1 | . . . . . 1 Reinforcement . | . . . . . . Assault . | . . . . . . Garrison . | . . . . . . Intercept . | . . . . . . Searches Triggered . | . . . . . . Construction Impeded . | . . . . . . Haulers Reinforced . | . . . . . . Active Scanning Responses . | . . . . . . Cargo Convoy Interrupts . | . . . . . . Stealth | -11 -10 -9 -8 -7 -6 --------- Run | Yrd Mat Mat Mat Fac Fac Distress Signals 1 | . . 1 . . . Communications Jammed . | . . . . . . Distress Signals . | . . . . . . Times Spotted 49 | . 8 6 11 6 18 Peak Tracking Total 9 | . 8 6 4 3 9 Tactical Retreats 10 | . 1 1 3 . 5 Traps | -11 -10 -9 -8 -7 -6 ------- Run | Yrd Mat Mat Mat Fac Fac Traps Triggered 3 | . . . . 1 2 Indirectly . | . . . . . . Trap Hack Attempts . | . . . . . . Triggered . | . . . . . . Disarmed . | . . . . . . Reprogrammed . | . . . . . . Reused . | . . . . . . Traps Extracted . | . . . . . . Installed . | . . . . . . Triggered . | . . . . . . Machines | -11 -10 -9 -8 -7 -6 ---------- Run | Yrd Mat Mat Mat Fac Fac Machines Disabled . | . . . . . . Max in Single Turn . | . . . . . . Machines Repaired . | . . . . . . Machines Dismantled . | . . . . . . Machines Sabotaged . | . . . . . . Overloaded Fab Kills . | . . . . . . Hacking | -11 -10 -9 -8 -7 -6 --------- Run | Yrd Mat Mat Mat Fac Fac Machines Accessed 4 | . . . 1 . 3 Terminals 3 | . . . 1 . 2 Fabricators . | . . . . . . Repair Stations . | . . . . . . Recycling Units . | . . . . . . Scanalyzers . | . . . . . . Garrison Access 1 | . . . . . 1 Total Hacks 6 | . . . 2 . 4 Successful . | . . . . . . Failed 6 | . . . 2 . 4 Catastrophic 1 | . . . . . 1 Database Lockouts . | . . . . . . Manual 4 | . . . 2 . 2 Terminals 4 | . . . 2 . 2 Fabricators . | . . . . . . Repair Stations . | . . . . . . Recycling Units . | . . . . . . Scanalyzers . | . . . . . . Garrison Access 2 | . . . . . 2 Terminal Hacks . | . . . . . . Fabricator Hacks . | . . . . . . Repair Station Hacks . | . . . . . . Recycling Unit Hacks . | . . . . . . Scanalyzer . | . . . . . . Garrison Access Hacks . | . . . . . . Unauthorized Hacks . | . . . . . . Terminals . | . . . . . . Fabricators . | . . . . . . Repair Stations . | . . . . . . Recycling Units . | . . . . . . Scanalyzers . | . . . . . . Garrison Access . | . . . . . . Data Cores Recovered . | . . . . . . Used . | . . . . . . Hacking Detections 4 | . . . 1 . 3 Full Trace Events . | . . . . . . Feedback Events . | . . . . . . Feedback Blocked . | . . . . . . Robot Schematics Acquired . | . . . . . . Robots Built . | . . . . . . Authchips . | . . . . . . Time . | . . . . . . Total Robot Build Rating . | . . . . . . Part Schematics Acquired . | . . . . . . Parts Built . | . . . . . . Authchips . | . . . . . . Time . | . . . . . . Total Part Build Rating . | . . . . . . Parts Repaired . | . . . . . . Time . | . . . . . . Parts Recycled . | . . . . . . Recycled Matter . | . . . . . . Retrieved Matter . | . . . . . . Retrieved Components . | . . . . . . Parts Scanalyzed . | . . . . . . Part Schematics Acquired . | . . . . . . Parts Damaged . | . . . . . . Bothacking | -11 -10 -9 -8 -7 -6 ------------ Run | Yrd Mat Mat Mat Fac Fac Used RIF Installer . | . . . . . . Robots Hacked . | . . . . . . Non-combat . | . . . . . . Combat . | . . . . . . Robot Hacks Applied . | . . . . . . Relay Couplers Released . | . . . . . . Fabnet Peak Effective % . | . . . . . . Robots Rewired . | . . . . . . Allies Hacked . | . . . . . . Hacks Repelled . | . . . . . . Allies | -11 -10 -9 -8 -7 -6 -------- Run | Yrd Mat Mat Mat Fac Fac Total Allies . | . . . . . . Largest Group . | . . . . . . Highest-Rated Group . | . . . . . . Highest-Rated Ally . | . . . . . . Total Orders . | . . . . . . Ally Attacks . | . . . . . . Total Damage . | . . . . . . Kills . | . . . . . . Allies Corrupted . | . . . . . . Allies Melted . | . . . . . . Intel | -11 -10 -9 -8 -7 -6 ------- Run | Yrd Mat Mat Mat Fac Fac Robot Analysis Total . | . . . . . . Derelict Logs Recovered . | . . . . . . Drone Launches . | . . . . . . Drone Recoveries . | . . . . . . Exploration | -11 -10 -9 -8 -7 -6 ------------- Run | Yrd Mat Mat Mat Fac Fac Turns Passed 1053 | 9 76 144 375 78 371 Spaces Moved 1594 | 18 140 176 490 152 618 Core 656 | 18 140 176 115 . 207 Treads . | . . . . . . Legs . | . . . . . . Wheels 20 | . . . . . 20 Hover 131 | . . . . . 131 Flight 787 | . . . 375 152 260 Fastest Speed 37 | 50 50 50 37 37 37 Average Speed 47 | 50 50 50 40 37 52 Slowest Speed 150 | 50 50 50 120 37 150 Overloaded Moves . | . . . . . . Propulsion Burnouts . | . . . . . . Robots Hopped 2 | . . . 1 . 1 Cave-ins Triggered . | . . . . . . Exploration Rate (%) 21 | 3 31 22 42 6 22 Regions Visited 5 Branch Regions . Pre-discovered Areas . | . . . . . . Known Exits Taken . | . . . . . . Unknown Exits Taken 5 | 1 1 1 1 1 . Scrap Searched . | . . . . . . Spaces Dug 2 | . . . . . 2 Terrain Destroyed 2 | . . . . . 2 Melee 2 | . . . . . 2 Projectile . | . . . . . . AOE . | . . . . . . Terrain Rammed . | . . . . . . Walls Destroyed . | . . . . . . Machines Disabled . | . . . . . . Actions | -11 -10 -9 -8 -7 -6 --------- Run | Yrd Mat Mat Mat Fac Fac Total 1869 | 17 144 229 657 172 650 Wait 212 | . . 48 159 1 4 Move 1585 | 17 139 175 487 151 616 Hop 2 | . . . 1 . 1 Pick Up 4 | . . 3 . 1 . Fast Attach 19 | . 2 3 5 1 8 Attach . | . . . . . . Detach 1 | . . . 1 . . Swap 2 | . . . . . 2 Drop 2 | . . . . . 2 Fire 5 | . . . 4 . 1 Melee 3 | . . . . . 3 Ram 16 | . 3 . . . 13 Kick . | . . . . . . Crush . | . . . . . . Escape Stasis 18 | . . . . 18 . Rewire . | . . . . . . Trap . | . . . . . . Miscellaneous . | . . . . . . Route ------- -11/Scrapyard -10/Materials -9/Materials -8/Materials -7/Factory -6/Factory History --------- Turn | Location | Event 3 | -11/Scrapyard | Discovered new exit (range 15) 10 | -11/Scrapyard | Entered Materials 83 | -10/Materials | Discovered new exit (range 7) 86 | -10/Materials | Entered another Materials area 86 | -9/Materials | Evolved 2 slots: Utility x2 226 | -9/Materials | Discovered new exit (range 4) 230 | -9/Materials | Entered another Materials area 230 | -8/Materials | Evolved 2 slots: Utility x2 395 | -8/Materials | Build established: Hacker-Mutant 598 | -8/Materials | Discovered new exit (range 16) 605 | -8/Materials | Entered Factory 605 | -7/Factory | Evolved 2 slots: Utility x2 679 | -7/Factory | Discovered new exit (range 12) 683 | -7/Factory | Entered another Factory area 683 | -6/Factory | Evolved 2 slots: Utility x2 867 | -6/Factory | Lost 5 parts (1p1n2u1w) 900 | -6/Factory | Core integrity fell below 50% 955 | -6/Factory | System corruption reached 10% 971 | -6/Factory | Core integrity fell below 20% 1054 | -6/Factory | Destroyed by P-60 Hacker with Shock Rifle Last Messages --------------- 00964_ K-01 Serf cleans the Subcomponent Replicator. 00981_ ,N>CMA,YDN4,WFE W1C&=TX7ZK9IAOHYYQ# 00989_ Matter Pump disabled. 00989_ >> Machine Analyzer network decryption results: 00989_ Terminal x1 00993_ >> Machine Analyzer network decryption results: 00993_ Fabricator x3 00993_ Hacking Suite destroyed. 00994_ Acquired Greatsword. 00998_ K-01 Serf cleans the Neutrino Reactor. 01010_ Destroyed Unknown Energy Gun. 01026_ System corrupted: Matter fused (-10). 01028_ Acquired Arm. Wheel. 01038_ Hacking Suite destroyed. 01041_ Greatsword destroyed. 01046_ System corrupted: Energy discharge (-40). Map ----- +----------------------------------------------------+ | ????????????# """ """ #????????? | | ????????????# ^ * #????????? | | ????????????# """ """ ##????????? | | ????????????# """ """ #?????????? | | ????????????# """ """ ########### | | ????????????# ^ #= ! # | | ????????????# """ """ # != # | | ????????????# """ """ # != # | | ????????????# """ """ # = # | | ????????????+ / # | | ????????????# """ """ # "" "" # | | ?????????????? """ """ # ""F"" # | | ???????????????""" """ # """ # | | ??????????????? ######"#### | | ???????????????""" """ #????#"#### | | ???????????? """ """ p#????# # | | ??????????? """ """ #????# # | | ?????????? ###### # | | ??????????? g + # | | ??????????????????# #### # | | ??????????????????# #??# # | | ????????????"?"???# #??###### | | ????????????"T"???# #???????? | | ????????????"""???# #???????? | | ??????????????????# #???????? | | ??????????????????# @#???????? | | ??????????????????# #???"""?? | | ??????????????????# ???"""?? | | ???????????????? ???"""?? | | ???????????????##### ??????? | | ???????????????????####### #??????? | | ?????????????????????????? #??????? | | ?????????????????????????? #??????? | | ?????????????????????????? #??????? | | ?????????????????????????? #??????? | | ?????????????????????????? #??????? | | ?????????????????????????? #??????? | | ?????????????????????????? #??????? | | ??????????????????????????????????? | | ??????????????????????????????????? | | ??????????????????????????????????? | | ??????????????????????????????????? | | ??????????????????????????????????? | | ??????????????????????????????????? | | ??????????????????????????????????? | | ??????????????????????????????????? | | ??????????????????????????????????? | | ??????????????????????????????????? | | ??????????????????????????????????? | | ??????????????????????????????????? | +----------------------------------------------------+ Best States ------------- Heat Dissipation 37 Energy Generation 18 Energy Capacity 160 Matter Stores 151 Matter Capacity 300 Sight Range 16 Robot Scan Range 15 Terrain Scan Density 10 Evasion (%) 62 Targeting Accuracy 8 Offensive Hacking 30 Item Schematics ----------------- None Robot Schematics ------------------ None Fabricated ------------ Nothing Alien Tech Used ----------------- None Achievements -------------- None Challenges ------------ None Game ------ Seed AccelerationNeutronShovel Manual? 0 Play Time 00:16:59 Cumulative 71.0 hours Start 2024.10.23 @ 03:30:57 End 2024.10.23 @ 03:47:13 Sessions 1 Manual Loads 0 Difficulty Rogue Special Mode None Game No. 80 Rogue 80 Adventurer 0 Explorer 0 Win Type - Total 1 Types 1/0/0/0/0/0/0/0/0 Lore% 26 Gallery% 49 Achievement% 34 Wizard Run 0 Options --------- Layout 1 ASCII 0 Keyboard 1 Movement Numpad Keybinds 0 Fullscreen 2 Font 24/Smallcaps Map View 50x35 Zoom Use 0% Tactical HUD 1 Map Filters NONE Filters LOW_CONTRAST(5,10,15) Steam 1 RUN: e606381c-ec3f-4853-b696-145fd0249de2